[Event "FIDE Women World Blitz 2021"]
[Site "Warsaw"]
[Date "2021.12.29"]
[Round "3.35"]
[White "Jarocka, Liwia"]
[Black "Garifullina, Leya"]
[Result "1/2-1/2"]
[ECO "B52"]
[WhiteElo "1851"]
[BlackElo "2416"]
[Annotator "NA"]
[PlyCount "106"]
[EventDate "2021.12.29"]
[EventType "swiss"]
[EventCountry "POL"]
[Tiebreak "Cut1 Buchholz"]
[SourceTitle "playchess.com"]
[Source "ChessBase"]
[SourceQuality "1"]
[TimeControl "180+2"]

1. e4 {[%emt 0:00:00]} c5 {[%emt 0:00:01]} 2. Nf3 {[%emt 0:00:01]} d6 {[%emt 0:
00:01]} 3. Bb5+ {[%emt 0:00:02]} Bd7 {[%emt 0:00:02]} 4. Bxd7+ {[%emt 0:00:01]}
Qxd7 {[%emt 0:00:06]} 5. c4 {[%emt 0:00:05]} Nf6 {[%emt 0:00:00]} 6. Nc3 {
[%emt 0:00:00]} g6 {[%emt 0:00:00]} 7. d4 {[%emt 0:00:02]} cxd4 {[%emt 0:00:00]
} 8. Nxd4 {[%emt 0:00:01]} Bg7 {[%emt 0:00:01]} 9. O-O {[%emt 0:00:02]} O-O {
[%emt 0:00:01]} 10. h3 {[%emt 0:00:02]} Nc6 {[%emt 0:00:04]} 11. Be3 {[%emt 0:
00:01]} Rac8 {[%emt 0:00:02]} 12. b3 {[%emt 0:00:05]} a6 {[%emt 0:00:05]} 13.
Rc1 {[%emt 0:00:01]} Nxd4 {[%emt 0:00:03]} 14. Bxd4 {[%emt 0:00:01]} b5 {
[%emt 0:00:01]} 15. cxb5 {[%emt 0:00:17]} axb5 {[%emt 0:00:07]} 16. Bxf6 {
[%emt 0:00:04]} Bxf6 {[%emt 0:00:21]} 17. Nd5 {[%emt 0:00:01]} Rxc1 {[%emt 0:
00:04]} 18. Nxf6+ {[%emt 0:00:01]} exf6 {[%emt 0:00:01]} 19. Qxc1 {[%emt 0:00:
01]} Ra8 {[%emt 0:00:03]} 20. Qd2 {[%emt 0:00:05]} Qa7 {[%emt 0:00:11]} 21. a4
{[%emt 0:00:17]} bxa4 {[%emt 0:00:07]} 22. bxa4 {[%emt 0:00:00]} Qxa4 {[%emt 0:
00:02]} 23. Qxd6 {[%emt 0:00:02]} Qxe4 {[%emt 0:00:13]} 24. Qxf6 {[%emt 0:00:
02]} h5 {[%emt 0:00:02]} 25. Rd1 {[%emt 0:00:04]} Re8 {[%emt 0:00:02]} 26. Rd8
{[%emt 0:00:14]} Rxd8 {[%emt 0:00:01]} 27. Qxd8+ {[%emt 0:00:01]} Kg7 {[%emt 0:
00:01]} 28. Qd2 {[%emt 0:00:03]} Qf5 {[%emt 0:00:18]} 29. Qb2+ {[%emt 0:00:04]}
Kh7 {[%emt 0:00:03]} 30. Qd2 {[%emt 0:00:02]} g5 {[%emt 0:00:02]} 31. Qe2 {
[%emt 0:00:05]} Kg6 {[%emt 0:00:02]} 32. Qa6+ {[%emt 0:00:03]} Kg7 {[%emt 0:00:
13]} 33. Qe2 {[%emt 0:00:02]} h4 {[%emt 0:00:01]} 34. Qb2+ {[%emt 0:00:02]} Kg6
{[%emt 0:00:10]} 35. Qb6+ {[%emt 0:00:03]} f6 {[%emt 0:00:06]} 36. Qb8 {
[%emt 0:00:07]} Qe6 {[%emt 0:00:02]} 37. Qb1+ {[%emt 0:00:04]} Kh6 {[%emt 0:00:
01]} 38. Qd1 {[%emt 0:00:09]} Kg7 {[%emt 0:00:05]} 39. Qd2 {[%emt 0:00:09]} Kg6
{[%emt 0:00:02]} 40. Qd1 {[%emt 0:00:15]} f5 {[%emt 0:00:02]} 41. Qd2 {[%emt 0:
00:08]} Qe5 {[%emt 0:00:19]} 42. Qd1 {[%emt 0:00:11]} Qc5 {[%emt 0:00:09]} 43.
Qb1 {[%emt 0:00:04]} Qd6 {[%emt 0:00:05]} 44. Qc2 {[%emt 0:00:03]} Qe6 {
[%emt 0:00:02]} 45. Qb1 {[%emt 0:00:06]} Kh6 {[%emt 0:00:03]} 46. Qa1 {[%emt 0:
00:06]} Kg6 {[%emt 0:00:05]} 47. Qb1 {[%emt 0:00:00]} Qe5 {[%emt 0:00:06]} 48.
Qb6+ {[%emt 0:00:05]} Kh5 {[%emt 0:00:02]} 49. Qb1 {[%emt 0:00:06]} g4 {
[%emt 0:00:04]} 50. hxg4+ {[%emt 0:00:01]} Kxg4 {[%emt 0:00:06]} 51. Qd1+ {
[%emt 0:00:02]} Kg5 {[%emt 0:00:01]} 52. Qd2+ {[%emt 0:00:02]} f4 {[%emt 0:00:
03]} 53. Qd8+ {[%emt 0:00:01]} Kh5 {[%emt 0:00:03]} 1/2-1/2

[Event "FIDE Women World Blitz 2021"]
[Site "Warsaw"]
[Date "2021.12.29"]
[Round "3.36"]
[White "Dworakowska, Joanna"]
[Black "Katkov, Michelle"]
[Result "0-1"]
[ECO "C50"]
[WhiteElo "2228"]
[BlackElo "1651"]
[Annotator "NA"]
[PlyCount "171"]
[EventDate "2021.12.29"]
[EventType "swiss"]
[EventCountry "POL"]
[Tiebreak "Cut1 Buchholz"]
[SourceTitle "playchess.com"]
[Source "ChessBase"]
[SourceQuality "1"]
[TimeControl "180+2"]

1. e4 {[%emt 0:00:02]} e5 {[%emt 0:00:00]} 2. Nf3 {[%emt 0:00:02]} Nc6 {
[%emt 0:00:01]} 3. Bc4 {[%emt 0:00:01]} Bc5 {[%emt 0:00:02]} 4. d3 {[%emt 0:00:
06]} Nf6 {[%emt 0:00:02]} 5. a3 {[%emt 0:00:07]} d6 {[%emt 0:00:06]} 6. Nbd2 {
[%emt 0:00:02]} O-O {[%emt 0:00:08]} 7. h3 {[%emt 0:00:01]} a5 {[%emt 0:00:07]}
8. Nf1 {[%emt 0:00:09]} d5 {[%emt 0:00:26]} 9. exd5 {[%emt 0:00:06]} Nxd5 {
[%emt 0:00:01]} 10. Ng3 {[%emt 0:00:09]} Be6 {[%emt 0:00:09]} 11. Ng5 {[%emt 0:
00:07]} h6 {[%emt 0:00:22]} 12. Nxe6 {[%emt 0:00:10]} fxe6 {[%emt 0:00:01]} 13.
O-O {[%emt 0:00:07]} Qh4 {[%emt 0:00:16]} 14. Qg4 {[%emt 0:00:26]} Qxg4 {
[%emt 0:00:11]} 15. hxg4 {[%emt 0:00:01]} Rae8 {[%emt 0:00:05]} 16. Bd2 {
[%emt 0:00:11]} Nf4 {[%emt 0:00:08]} 17. Rae1 {[%emt 0:00:10]} Bb6 {[%emt 0:00:
51]} 18. Kh2 {[%emt 0:00:14]} Kf7 {[%emt 0:00:10]} 19. Bb5 {[%emt 0:00:17]} Ng6
{[%emt 0:00:11]} 20. Be3 {[%emt 0:00:14]} Bxe3 {[%emt 0:00:02]} 21. Rxe3 {
[%emt 0:00:01]} Ke7 {[%emt 0:00:03]} 22. f3 {[%emt 0:00:11]} Rd8 {[%emt 0:00:
02]} 23. Bxc6 {[%emt 0:00:08]} bxc6 {[%emt 0:00:01]} 24. Re4 {[%emt 0:00:05]}
Rd5 {[%emt 0:00:10]} 25. Rfe1 {[%emt 0:00:03]} Rb8 {[%emt 0:00:03]} 26. b3 {
[%emt 0:00:01]} Rc5 {[%emt 0:00:02]} 27. R1e2 {[%emt 0:00:04]} Rd5 {[%emt 0:00:
05]} 28. Rc4 {[%emt 0:00:07]} Kd7 {[%emt 0:00:02]} 29. Ne4 {[%emt 0:00:04]} Nf4
{[%emt 0:00:01]} 30. Re1 {[%emt 0:00:09]} Rdb5 {[%emt 0:00:01]} 31. Kg3 {
[%emt 0:00:08]} g5 {[%emt 0:00:05]} 32. Nc5+ {[%emt 0:00:11]} Kd6 {[%emt 0:00:
02]} 33. Ne4+ {[%emt 0:00:02]} Kd7 {[%emt 0:00:01]} 34. Rh1 {[%emt 0:00:02]}
Rh8 {[%emt 0:00:02]} 35. Nxg5 {[%emt 0:00:04]} Ne2+ {[%emt 0:00:01]} 36. Kf2 {
[%emt 0:00:01]} Nd4 {[%emt 0:00:03]} 37. Ne4 {[%emt 0:00:03]} a4 {[%emt 0:00:
07]} 38. b4 {[%emt 0:00:02]} Rbb8 {[%emt 0:00:03]} 39. Nc5+ {[%emt 0:00:04]}
Kd6 {[%emt 0:00:01]} 40. c3 {[%emt 0:00:02]} Nb5 {[%emt 0:00:03]} 41. Nxa4 {
[%emt 0:00:05]} Nxa3 {[%emt 0:00:01]} 42. Re4 {[%emt 0:00:02]} Nb5 {[%emt 0:00:
01]} 43. c4 {[%emt 0:00:03]} Nd4 {[%emt 0:00:01]} 44. b5 {[%emt 0:00:02]} cxb5
{[%emt 0:00:01]} 45. cxb5 {[%emt 0:00:01]} Rxb5 {[%emt 0:00:01]} 46. g5 {
[%emt 0:00:02]} Ra8 {[%emt 0:00:02]} 47. Nc3 {[%emt 0:00:02]} Rb2+ {[%emt 0:00:
01]} 48. Kg3 {[%emt 0:00:01]} hxg5 {[%emt 0:00:01]} 49. Rg4 {[%emt 0:00:02]}
Rc2 {[%emt 0:00:02]} 50. Ne4+ {[%emt 0:00:02]} Kd5 {[%emt 0:00:02]} 51. Rxg5 {
[%emt 0:00:02]} Raa2 {[%emt 0:00:01]} 52. Kh3 {[%emt 0:00:02]} Ne2 {[%emt 0:00:
03]} 53. g3 {[%emt 0:00:03]} Nd4 {[%emt 0:00:02]} 54. f4 {[%emt 0:00:01]} Nf3 {
[%emt 0:00:01]} 55. Rh5 {[%emt 0:00:02]} Kd4 {[%emt 0:00:02]} 56. fxe5 {
[%emt 0:00:02]} Nxe5 {[%emt 0:00:01]} 57. Nf6 {[%emt 0:00:03]} Nxd3 {[%emt 0:
00:01]} 58. Rh4+ {[%emt 0:00:03]} Ke5 {[%emt 0:00:02]} 59. Ng4+ {[%emt 0:00:02]
} Kd6 {[%emt 0:00:01]} 60. Ne3 {[%emt 0:00:02]} Nf2+ {[%emt 0:00:01]} 61. Kg2 {
[%emt 0:00:01]} Nxh1+ {[%emt 0:00:05]} 62. Nxc2 {[%emt 0:00:02]} Nxg3 {[%emt 0:
00:06]} 63. Rc4 {[%emt 0:00:01]} Nf5 {[%emt 0:00:02]} 64. Kh3 {[%emt 0:00:03]}
c5 {[%emt 0:00:02]} 65. Rc3 {[%emt 0:00:01]} Nd4 {[%emt 0:00:02]} 66. Ne3 {
[%emt 0:00:01]} Ra4 {[%emt 0:00:06]} 67. Kg2 {[%emt 0:00:03]} Rb4 {[%emt 0:00:
03]} 68. Kf2 {[%emt 0:00:01]} Rb3 {[%emt 0:00:01]} 69. Rc1 {[%emt 0:00:03]} e5
{[%emt 0:00:01]} 70. Nc4+ {[%emt 0:00:03]} Kd5 {[%emt 0:00:01]} 71. Ne3+ {
[%emt 0:00:01]} Kc6 {[%emt 0:00:01]} 72. Ng4 {[%emt 0:00:03]} Rf3+ {[%emt 0:00:
01]} 73. Kg2 {[%emt 0:00:01]} Rf5 {[%emt 0:00:02]} 74. Ne3 {[%emt 0:00:02]} Rf4
{[%emt 0:00:01]} 75. Nc4 {[%emt 0:00:01]} Kd5 {[%emt 0:00:03]} 76. Ne3+ {
[%emt 0:00:03]} Kd6 {[%emt 0:00:01]} 77. Ra1 {[%emt 0:00:02]} e4 {[%emt 0:00:
02]} 78. Nc4+ {[%emt 0:00:05]} Kd5 {[%emt 0:00:02]} 79. Ne3+ {[%emt 0:00:01]}
Kc6 {[%emt 0:00:02]} 80. Ra6+ {[%emt 0:00:04]} Kb5 81. Ra8 {[%emt 0:00:02]} Rf3
{[%emt 0:00:01]} 82. Nd5 {[%emt 0:00:02]} Kc4 {[%emt 0:00:02]} 83. Nb6+ {
[%emt 0:00:03]} Kd3 84. Nd5 {[%emt 0:00:01]} Rf5 {[%emt 0:00:03]} 85. Ra3+ {
[%emt 0:00:01]} Kc2 {[%emt 0:00:02]} 86. Ne3+ {[%emt 0:00:02]} 0-1

[Event "FIDE Women World Blitz 2021"]
[Site "Warsaw"]
[Date "2021.12.29"]
[Round "3.37"]
[White "Lach, Aleksandra"]
[Black "Da Silva, Cibele Florencio"]
[Result "1-0"]
[ECO "C54"]
[WhiteElo "2204"]
[BlackElo "1405"]
[Annotator "NA"]
[PlyCount "31"]
[EventDate "2021.12.29"]
[EventType "swiss"]
[EventCountry "POL"]
[Tiebreak "Cut1 Buchholz"]
[SourceTitle "playchess.com"]
[Source "ChessBase"]
[SourceQuality "1"]
[TimeControl "180+2"]

1. e4 {[%emt 0:00:02]} e5 {[%emt 0:00:01]} 2. Nf3 {[%emt 0:00:02]} Nc6 {
[%emt 0:00:02]} 3. Bc4 {[%emt 0:00:01]} h6 {[%emt 0:00:02]} 4. O-O {[%emt 0:00:
06]} Nf6 {[%emt 0:00:01]} 5. d3 {[%emt 0:00:01]} Bc5 {[%emt 0:00:03]} 6. c3 {
[%emt 0:00:01]} d6 {[%emt 0:00:01]} 7. a4 {[%emt 0:00:06]} a6 {[%emt 0:00:07]}
8. b4 {[%emt 0:00:03]} Bb6 {[%emt 0:00:02]} 9. Nbd2 {[%emt 0:00:04]} Bg4 {
[%emt 0:00:04]} 10. Bb3 {[%emt 0:00:09]} Nh5 {[%emt 0:00:16]} 11. h3 {[%emt 0:
00:08]} Bxf3 {[%emt 0:00:12]} 12. Qxf3 {[%emt 0:00:10]} Nf4 {[%emt 0:00:18]}
13. Nc4 {[%emt 0:00:03]} g5 {[%emt 0:00:11]} 14. Nxb6 {[%emt 0:00:24]} cxb6 {
[%emt 0:00:03]} 15. g3 {[%emt 0:00:03]} Ng6 {[%emt 0:00:11]} 16. Qxf7# {
[%emt 0:00:02]} 1-0

[Event "FIDE Women World Blitz 2021"]
[Site "Warsaw"]
[Date "2021.12.29"]
[Round "3.38"]
[White "Zabrzanska, Weronika"]
[Black "Garcia Martin, Marta"]
[Result "0-1"]
[ECO "B00"]
[WhiteElo "1596"]
[BlackElo "2194"]
[Annotator "NA"]
[PlyCount "152"]
[EventDate "2021.12.29"]
[EventType "swiss"]
[EventCountry "POL"]
[Tiebreak "Cut1 Buchholz"]
[SourceTitle "playchess.com"]
[Source "ChessBase"]
[SourceQuality "1"]
[TimeControl "180+2"]

1. e4 {[%emt 0:00:01]} b6 {[%emt 0:00:00]} 2. d4 {[%emt 0:00:01]} Bb7 {[%emt 0:
00:01]} 3. Bd3 {[%emt 0:00:01]} e6 {[%emt 0:00:01]} 4. Nf3 {[%emt 0:00:01]} c5
{[%emt 0:00:02]} 5. c3 {[%emt 0:00:02]} Nf6 {[%emt 0:00:08]} 6. Nbd2 {[%emt 0:
00:10]} d5 {[%emt 0:00:04]} 7. e5 {[%emt 0:00:04]} Nfd7 {[%emt 0:00:18]} 8. O-O
{[%emt 0:00:04]} Ba6 {[%emt 0:00:18]} 9. Bxa6 {[%emt 0:00:11]} Nxa6 {[%emt 0:
00:01]} 10. Re1 {[%emt 0:00:02]} Be7 {[%emt 0:00:02]} 11. Nf1 {[%emt 0:00:02]}
O-O {[%emt 0:00:07]} 12. Ng3 {[%emt 0:00:06]} Rc8 {[%emt 0:00:03]} 13. h3 {
[%emt 0:00:21]} cxd4 {[%emt 0:00:04]} 14. cxd4 {[%emt 0:00:01]} Nb4 {[%emt 0:
00:01]} 15. Re2 {[%emt 0:00:13]} b5 {[%emt 0:00:39]} 16. a3 {[%emt 0:00:09]}
Nc6 {[%emt 0:00:00]} 17. b4 {[%emt 0:00:07]} a5 {[%emt 0:00:02]} 18. bxa5 {
[%emt 0:00:18]} Nxa5 {[%emt 0:00:00]} 19. Qd3 {[%emt 0:00:05]} Qb6 {[%emt 0:00:
33]} 20. Rb1 {[%emt 0:00:17]} Rc4 {[%emt 0:00:27]} 21. Reb2 {[%emt 0:00:19]}
Qc6 {[%emt 0:00:39]} 22. Bd2 {[%emt 0:00:10]} Ra4 {[%emt 0:00:07]} 23. Qxb5 {
[%emt 0:00:16]} Qxb5 {[%emt 0:00:02]} 24. Rxb5 {[%emt 0:00:02]} Nc4 {[%emt 0:
00:01]} 25. Bb4 {[%emt 0:00:05]} Bxb4 {[%emt 0:00:05]} 26. axb4 {[%emt 0:00:04]
} Na3 {[%emt 0:00:01]} 27. Ra1 {[%emt 0:00:05]} Rfa8 {[%emt 0:00:06]} 28. Rb7 {
[%emt 0:00:02]} Nf8 {[%emt 0:00:02]} 29. Ne2 {[%emt 0:00:06]} Nc4 {[%emt 0:00:
03]} 30. Rb1 {[%emt 0:00:08]} h6 {[%emt 0:00:01]} 31. Nc3 {[%emt 0:00:02]} Ra1
{[%emt 0:00:01]} 32. Rxa1 {[%emt 0:00:08]} Rxa1+ {[%emt 0:00:01]} 33. Kh2 {
[%emt 0:00:01]} Ng6 {[%emt 0:00:00]} 34. b5 {[%emt 0:00:04]} Ra3 {[%emt 0:00:
02]} 35. Rb8+ {[%emt 0:00:07]} Kh7 {[%emt 0:00:00]} 36. Nb1 {[%emt 0:00:09]}
Rb3 37. Nbd2 {[%emt 0:00:00]} Rb2 {[%emt 0:00:03]} 38. Nf1 {[%emt 0:00:09]}
Rxf2 {[%emt 0:00:04]} 39. Ng3 {[%emt 0:00:03]} Nf4 {[%emt 0:00:01]} 40. Ne1 {
[%emt 0:00:01]} Rb2 {[%emt 0:00:04]} 41. Rb7 {[%emt 0:00:04]} Kg6 {[%emt 0:00:
01]} 42. h4 {[%emt 0:00:01]} h5 {[%emt 0:00:01]} 43. Rb8 {[%emt 0:00:03]} Ne3 {
[%emt 0:00:01]} 44. Kh1 {[%emt 0:00:02]} Nexg2 {[%emt 0:00:02]} 45. Nxg2 {
[%emt 0:00:01]} Rxg2 {[%emt 0:00:03]} 46. Nf1 {[%emt 0:00:01]} Rb2 {[%emt 0:00:
02]} 47. b6 {[%emt 0:00:00]} Ne2 {[%emt 0:00:03]} 48. b7 {[%emt 0:00:04]} Nxd4
{[%emt 0:00:02]} 49. Ne3 {[%emt 0:00:02]} Nc6 {[%emt 0:00:06]} 50. Rc8 {
[%emt 0:00:03]} Rxb7 {[%emt 0:00:02]} 51. Rxc6 {[%emt 0:00:01]} Rb4 {[%emt 0:
00:01]} 52. Ng2 {[%emt 0:00:02]} Re4 {[%emt 0:00:02]} 53. Rc3 {[%emt 0:00:03]}
Rxe5 {[%emt 0:00:01]} 54. Kh2 {[%emt 0:00:00]} Re4 {[%emt 0:00:04]} 55. Kg3 {
[%emt 0:00:01]} e5 {[%emt 0:00:01]} 56. Rd3 {[%emt 0:00:04]} d4 {[%emt 0:00:02]
} 57. Kf3 {[%emt 0:00:02]} Rg4 {[%emt 0:00:02]} 58. Rd1 {[%emt 0:00:01]} f5 {
[%emt 0:00:02]} 59. Kf2 {[%emt 0:00:04]} f4 {[%emt 0:00:01]} 60. Re1 {[%emt 0:
00:03]} Kf5 {[%emt 0:00:01]} 61. Rf1 {[%emt 0:00:02]} d3 {[%emt 0:00:03]} 62.
Rd1 {[%emt 0:00:02]} e4 {[%emt 0:00:00]} 63. Kf1 {[%emt 0:00:01]} Rg3 {[%emt 0:
00:02]} 64. Ne1 {[%emt 0:00:03]} Kg4 {[%emt 0:00:03]} 65. Ng2 {[%emt 0:00:01]}
g5 {[%emt 0:00:05]} 66. hxg5 {[%emt 0:00:03]} Kxg5 {[%emt 0:00:00]} 67. Kf2 {
[%emt 0:00:02]} h4 {[%emt 0:00:01]} 68. Rh1 {[%emt 0:00:02]} h3 {[%emt 0:00:01]
} 69. Ne1 {[%emt 0:00:01]} d2 {[%emt 0:00:01]} 70. Nc2 {[%emt 0:00:01]} e3+ {
[%emt 0:00:01]} 71. Ke2 {[%emt 0:00:01]} Kg4 {[%emt 0:00:03]} 72. Nd4 {[%emt 0:
00:02]} Rg2+ {[%emt 0:00:01]} 73. Kd3 {[%emt 0:00:01]} h2 {[%emt 0:00:04]} 74.
Ne2 {[%emt 0:00:02]} Rxe2 {[%emt 0:00:03]} 75. Kxe2 {[%emt 0:00:01]} Kg3 {
[%emt 0:00:00]} 76. Rd1 {[%emt 0:00:03]} Kg2 {[%emt 0:00:02]} 0-1

[Event "FIDE Women World Blitz 2021"]
[Site "Warsaw"]
[Date "2021.12.29"]
[Round "3.39"]
[White "Nurgali, Nazerke"]
[Black "Lagno, Kateryna"]
[Result "0-1"]
[ECO "D94"]
[WhiteElo "2267"]
[BlackElo "2550"]
[Annotator "ChessBase"]
[PlyCount "114"]
[EventDate "2021.12.29"]
[EventType "swiss"]
[EventCountry "POL"]
[Tiebreak "Cut1 Buchholz"]
[SourceTitle "playchess.com"]
[Source "ChessBase"]
[SourceQuality "1"]
[TimeControl "180+2"]

1. d4 {[%emt 0:00:01]} Nf6 {[%emt 0:00:01]} 2. Nf3 {[%emt 0:00:02]} g6 {
[%emt 0:00:01]} 3. c4 {[%emt 0:00:01]} Bg7 {[%emt 0:00:01]} 4. Nc3 {[%emt 0:00:
02]} d5 {[%emt 0:00:01]} 5. e3 {[%emt 0:00:01]} O-O {[%emt 0:00:03]} 6. cxd5 {
[%emt 0:00:02]} Nxd5 {[%emt 0:00:02]} 7. Bc4 {[%emt 0:00:02]} Nb6 {[%emt 0:00:
02]} 8. Bb3 {[%emt 0:00:01]} c5 {[%emt 0:00:02]} 9. O-O {[%emt 0:00:03]} Bg4 {
[%emt 0:00:07]} 10. h3 {[%emt 0:00:02]} cxd4 {[%emt 0:00:05]} 11. exd4 {
[%emt 0:00:06]} Bxf3 {[%emt 0:00:03]} 12. Qxf3 {[%emt 0:00:02]} Nc6 {[%emt 0:
00:03]} 13. d5 {[%emt 0:00:14]} Nd4 {[%emt 0:00:01]} 14. Qd1 {[%emt 0:00:03]}
Nxb3 {[%emt 0:00:12]} 15. axb3 {[%emt 0:00:07]} Qd7 {[%emt 0:00:02]} 16. Be3 {
[%emt 0:00:07]} Nc8 {[%emt 0:00:08]} 17. Bd4 {[%emt 0:00:13]} e5 {[%emt 0:00:
11]} 18. Bc5 {[%emt 0:00:08]} Rd8 {[%emt 0:00:01]} 19. Qe2 {[%emt 0:00:18]} b6
{[%emt 0:00:03]} 20. Be3 {[%emt 0:00:06]} Nd6 {[%emt 0:00:01]} 21. Rfd1 {
[%emt 0:00:11]} Rac8 {[%emt 0:00:01]} 22. Qd3 {[%emt 0:00:29]} f5 {[%emt 0:00:
05]} 23. Bg5 {[%emt 0:00:06]} Re8 {[%emt 0:00:01]} 24. h4 {[%emt 0:00:15]} f4 {
[%emt 0:00:23]} 25. h5 {[%emt 0:00:08]} gxh5 {[%emt 0:00:09]} 26. Ne4 {[%emt 0:
00:10]} Nxe4 {[%emt 0:00:27]} 27. Qxe4 {[%emt 0:00:01]} Bf8 {[%emt 0:00:31]}
28. Bf6 {[%emt 0:00:14]} Bd6 {[%emt 0:00:02]} 29. Rd3 {[%emt 0:00:09]} Rf8 {
[%emt 0:00:12]} 30. Bh4 {[%emt 0:00:12]} Rf7 {[%emt 0:00:02]} 31. Rh3 {[%emt 0:
00:03]} Kh8 {[%emt 0:00:05]} 32. Kh1 {[%emt 0:00:12]} a5 {[%emt 0:00:05]} 33.
f3 {[%emt 0:00:04]} Rg8 {[%emt 0:00:08]} 34. Bf2 {[%emt 0:00:02]} Rfg7 {
[%emt 0:00:03]} 35. Rh2 {[%emt 0:00:05]} Qb5 {[%emt 0:00:04]} 36. Rg1 {[%emt 0:
00:03]} Rg5 {[%emt 0:00:03]} 37. Bh4 {[%emt 0:00:04]} R5g6 {[%emt 0:00:01]} 38.
Bf2 {[%emt 0:00:02]} Rh6 {[%emt 0:00:32]} 39. Qf5 {[%emt 0:00:05]} Qe8 {
[%emt 0:00:04]} 40. Bh4 {[%emt 0:00:01]} Qg6 {[%emt 0:00:05]} 41. Qd7 {[%emt 0:
00:01]} Bc5 {[%emt 0:00:02]} 42. Rd1 {[%emt 0:00:02]} Qd6 {[%emt 0:00:02]} 43.
Qf5 {[%emt 0:00:01]} Bd4 {[%emt 0:00:02]} 44. Qe4 {[%emt 0:00:02]} Bxb2 {
[%emt 0:00:01]} 45. Rb1 {[%emt 0:00:03]} Bd4 {[%emt 0:00:01]} 46. Rc1 {[%emt 0:
00:01]} Qd7 {[%emt 0:00:02]} 47. Rd1 {[%emt 0:00:03]} Qg7 {[%emt 0:00:02]} 48.
Rd2 {[%emt 0:00:02]} Rc8 {[%emt 0:00:03]} 49. Rd1 {[%emt 0:00:01]} Rg6 {
[%emt 0:00:00]} 50. d6 {[%emt 0:00:02]} Rxd6 {[%emt 0:00:02]} 51. Qf5 {[%emt 0:
00:01]} Rg8 {[%emt 0:00:01]} 52. Qxh5 {[%emt 0:00:02]} Rg6 {[%emt 0:00:01]} 53.
Rd2 {[%emt 0:00:02]} Qc7 {[%emt 0:00:01]} 54. Rd1 {[%emt 0:00:02]} h6 {[%emt 0:
00:05]} 55. Rf1 {[%emt 0:00:04]} Qc2 {[%emt 0:00:02]} 56. Be1 {[%emt 0:00:05]}
Kh7 {[%emt 0:00:05]} 57. Qf5 Qxf5 {[%emt 0:00:01]} 0-1

[Event "FIDE Women World Blitz 2021"]
[Site "Warsaw"]
[Date "2021.12.29"]
[Round "4.1"]
[White "Assaubayeva, Bibisara"]
[Black "Muzychuk, Anna"]
[Result "1-0"]
[ECO "A80"]
[WhiteElo "2400"]
[BlackElo "2533"]
[Annotator "ChessBase"]
[PlyCount "74"]
[EventDate "2021.12.29"]
[EventType "swiss"]
[EventCountry "POL"]
[Tiebreak "Cut1 Buchholz"]
[SourceTitle "playchess.com"]
[Source "ChessBase"]
[SourceQuality "1"]
[TimeControl "180+2"]

1. d4 {[%emt 0:00:01]} f5 {[%emt 0:00:00]} 2. Nc3 {[%emt 0:00:04]} Nf6 {
[%emt 0:00:02]} 3. Bg5 {[%emt 0:00:01]} d5 {[%emt 0:00:00]} 4. Bxf6 {[%emt 0:
00:01]} exf6 {[%emt 0:00:01]} 5. e3 {[%emt 0:00:02]} Be6 {[%emt 0:00:05]} 6. a3
{[%emt 0:00:01]} c6 {[%emt 0:00:12]} 7. Bd3 {[%emt 0:00:02]} Bd6 {[%emt 0:00:
08]} 8. Qf3 {[%emt 0:00:03]} g6 {[%emt 0:00:02]} 9. Nge2 {[%emt 0:00:03]} Qc7 {
[%emt 0:00:03]} 10. g4 {[%emt 0:00:28]} Bf7 {[%emt 0:00:41]} 11. gxf5 {[%emt 0:
00:04]} g5 {[%emt 0:00:01]} 12. h4 {[%emt 0:00:06]} Nd7 {[%emt 0:00:08]} 13.
O-O-O {[%emt 0:00:13]} h5 {[%emt 0:00:02]} 14. e4 {[%emt 0:00:47]} g4 {[%emt 0:
00:08]} 15. Qe3 {[%emt 0:00:12]} O-O-O {[%emt 0:00:03]} 16. f3 {[%emt 0:00:06]}
g3 {[%emt 0:00:20]} 17. f4 {[%emt 0:00:07]} dxe4 {[%emt 0:00:06]} 18. Nxe4 {
[%emt 0:00:01]} Bf8 {[%emt 0:00:22]} 19. N2xg3 {[%emt 0:00:13]} Bh6 {[%emt 0:
00:01]} 20. Ng5 {[%emt 0:00:01]} fxg5 {[%emt 0:00:31]} 21. hxg5 {[%emt 0:00:01]
} Bf8 {[%emt 0:00:07]} 22. f6 {[%emt 0:00:11]} Bd6 {[%emt 0:00:07]} 23. Rh4 {
[%emt 0:00:02]} Rde8 {[%emt 0:00:02]} 24. Qf2 {[%emt 0:00:02]} Qa5 {[%emt 0:00:
03]} 25. g6 {[%emt 0:00:30]} Bxa3 {[%emt 0:00:15]} 26. gxf7 {[%emt 0:00:08]}
Bxb2+ {[%emt 0:00:11]} 27. Kxb2 {[%emt 0:00:02]} Qb4+ {[%emt 0:00:00]} 28. Kc1
{[%emt 0:00:03]} Re6 {[%emt 0:00:05]} 29. Rxh5 {[%emt 0:00:14]} Rf8 {[%emt 0:
00:02]} 30. Bf5 {[%emt 0:00:05]} Qa3+ {[%emt 0:00:03]} 31. Kd2 {[%emt 0:00:01]}
Qb4+ {[%emt 0:00:03]} 32. c3 {[%emt 0:00:01]} Qb2+ {[%emt 0:00:01]} 33. Bc2 {
[%emt 0:00:00]} Nxf6 {[%emt 0:00:02]} 34. Rb1 {[%emt 0:00:02]} Qa2 {[%emt 0:00:
03]} 35. Re5 {[%emt 0:00:01]} Ng4 {[%emt 0:00:04]} 36. Rxe6 {[%emt 0:00:02]}
Qxe6 {[%emt 0:00:04]} 37. Qe2 {[%emt 0:00:03]} Qxe2+ {[%emt 0:00:08]} 1-0